fUST/lending_fUST_20250227
["ID","MTS","AMOUNT","RATE_DAILY","PERIOD"]
[354632569,1740598269376,-735.43,0.007298,87]
[354632570,1740598269386,-735.43,0.007298,87]
[354632571,1740598269396,-735.43,0.007298,87]
[354632572,1740598269405,-735.43,0.007298,87]
[354632573,1740598269415,-735.43,0.007298,87]
[354632574,1740598269426,-735.43,0.007298,87]
[354632575,1740598269437,-735.43,0.007298,87]
[354632576,1740598269448,-10000.0,0.007299,120]
[354632577,1740598269461,-38957.42582574,0.00737,120]
[354632578,1740598269472,-41088.01354583,0.00738759,120]
[354632579,1740598269489,-10000.0,0.00739,120]
[354632580,1740598269499,-869.84479488,0.0074,120]
[354632581,1740598269509,-1594.0,0.00746,90]
[354632582,1740598269520,-1010.0,0.0074747,120]
[354632583,1740598269530,-7500.0,0.007478,120]
[354632584,1740598269541,-10000.0,0.007488,120]
[354632585,1740598269552,-10000.0,0.007499,120]
[354632586,1740598269563,-10000.0,0.0075,120]
[354632587,1740598269574,-9500.0,0.0075,120]
[354632588,1740598269584,-1000.0,0.0075,120]
[354632589,1740598269594,-245.4,0.0075,120]
[354632591,1740599136087,-500.0,0.00047186,2]
[354632592,1740599136108,-500.0,0.00047214,2]
[354632593,1740599136133,-500.0,0.00047314,2]
[354632594,1740599136153,-500.0,0.00047414,2]
[354632595,1740599136176,-500.0,0.00047514,2]
[354632596,1740599136201,-500.0,0.00047614,2]
[354632597,1740599136222,-500.0,0.00047714,2]
[354632598,1740599136242,-500.0,0.00047734,2]
[354632599,1740599136262,-500.0,0.00047814,2]
[354632600,1740599136284,-500.0,0.00047914,2]
[354632601,1740599136305,-500.0,0.00048014,2]
[354632602,1740599136327,-500.0,0.00048114,2]
[354632603,1740599136348,-500.0,0.00048214,2]
[354632604,1740599136369,-500.0,0.00048282,2]
[354632605,1740599136391,-500.0,0.00048314,2]
[354632606,1740599136413,-500.0,0.00048414,2]
[354632607,1740599136435,-500.0,0.00048514,2]
[354632608,1740599136459,-500.0,0.00048614,2]
[354632609,1740599136481,-500.0,0.00048714,2]
[354632610,1740599136503,-500.0,0.00048814,2]
[354632611,1740599136524,-250.88560826,0.00048814,84]
[354632612,1740599136544,-500.0,0.0004883,2]
[354632613,1740599136565,-682.00582298,0.000489,11]
[354632614,1740599136586,-500.0,0.00048914,2]
[354632615,1740599136606,-500.0,0.00049014,2]
[354632616,1740599136626,-500.0,0.00049114,2]
[354632617,1740599136646,-500.0,0.00049214,2]
[354632618,1740599136666,-500.0,0.00049314,2]
[354632619,1740599136685,-500.0,0.00049378,2]
[354632620,1740599136708,-500.0,0.00049414,2]
[354632621,1740599136728,-500.0,0.00049514,2]
[354632622,1740599136747,-500.0,0.00049614,2]
[354632623,1740599136769,-500.0,0.00049714,2]
[354632624,1740599136790,-500.0,0.00049814,2]
[354632625,1740599136811,-500.0,0.00049914,2]
[354632626,1740599136830,-302.0,0.00049926,2]
[354632627,1740599136850,-500.0,0.00050014,2]
[354632628,1740599136870,-500.0,0.00050114,2]
[354632629,1740599136890,-500.0,0.00050214,2]
[354632630,1740599136912,-500.0,0.00050314,2]
[354632631,1740599136932,-500.0,0.00050414,2]
[354632632,1740599136956,-500.0,0.00050514,2]
[354632633,1740599136976,-500.0,0.00050614,2]
[354632634,1740599136996,-500.0,0.00050714,2]
[354632635,1740599137017,-500.0,0.00050814,2]
[354632636,1740599137037,-500.0,0.00050914,2]
[354632637,1740599137057,-500.0,0.00051014,2]
[354632638,1740599137078,-500.0,0.00051114,2]
[354632639,1740599137098,-500.0,0.00051214,2]
[354632640,1740599137120,-500.0,0.00051314,2]
[354632641,1740599137142,-500.0,0.00051414,2]
[354632642,1740599137165,-500.0,0.00051514,2]
[354632643,1740599137185,-500.0,0.00051614,2]
[354632644,1740599137210,-500.0,0.00051714,2]
[354632645,1740599137230,-500.0,0.00051814,2]
[354632646,1740599137250,-500.0,0.00051914,2]
[354632647,1740599137271,-500.0,0.00052014,2]
[354632648,1740599137291,-510.13,0.00052054,120]
[354632649,1740599137310,-500.0,0.00052054,120]
[354632650,1740599137330,-500.0,0.00052054,120]
[354632651,1740599137350,-500.0,0.00052054,120]
[354632652,1740599137373,-500.32861608,0.00052054,120]
[354632653,1740599137395,-500.0,0.00052054,120]
[354632654,1740599137414,-500.0,0.00052054,120]
[354632655,1740599137434,-500.0,0.00052054,120]
[354632656,1740599137455,-500.0,0.00052054,120]
[354632657,1740599137474,-500.0,0.00052054,15]
[354632658,1740599137493,-500.0,0.00052054,120]
[354632659,1740599137515,-500.0,0.00052054,120]
[354632660,1740599137539,-500.0,0.00052054,120]
[354632661,1740599137561,-500.0,0.00052054,30]
[354632662,1740599137580,-315.99257805,0.00052054,120]
[354632663,1740599137602,-500.0,0.00052054,120]
[354632664,1740599137622,-500.0,0.00052054,120]
[354632665,1740599137641,-500.0,0.00052054,120]
[354632666,1740599137661,-500.0,0.00052054,120]
[354632667,1740599137680,-500.0,0.00052054,120]
[354632668,1740599137701,-500.0,0.00052054,120]
[354632669,1740599137722,-500.0,0.00052054,120]
[354632670,1740599137741,-504.76165128,0.00052054,120]
[354632671,1740599137761,-500.0,0.00052054,120]
[354632672,1740599137782,-500.0,0.00052054,120]
[354632673,1740599137802,-500.0,0.00052054,120]
[354632674,1740599137822,-500.0,0.00052054,120]
[354632675,1740599137842,-500.0,0.00052054,120]
[354632676,1740599137862,-526.88,0.00052054,120]
[354632677,1740599137882,-457.2308899,0.00052054,120]
[354632678,1740599137904,-1000.0,0.00052054,120]
[354632679,1740599137926,-500.0,0.00052054,120]
[354632680,1740599137952,-500.0,0.00052054,120]
[354632681,1740599137975,-500.0,0.00052054,120]
[354632682,1740599138000,-500.0,0.00052054,120]
[354632683,1740599138023,-500.0,0.00052054,120]
[354632684,1740599138046,-594.08,0.00052054,120]
[354632685,1740599138066,-381.69757279,0.00052054,120]
[354632686,1740599138086,-500.0,0.00052054,120]
[354632687,1740599138108,-500.0,0.00052054,120]
[354632688,1740599138133,-500.0,0.00052054,120]
[354632689,1740599138156,-503.32289268,0.00052054,120]
[354632690,1740599138179,-500.0,0.00052054,120]
[354632691,1740599138204,-500.0,0.00052054,120]
[354632692,1740599138225,-500.0,0.00052054,120]
[354632693,1740599138246,-300.0,0.00052054,120]
[354632694,1740599138267,-500.0,0.00052054,120]
[354632695,1740599138288,-500.0,0.00052054,120]
[354632696,1740599138309,-500.0,0.00052054,120]
[354632697,1740599138330,-500.0,0.00052054,120]
[354632698,1740599138352,-500.0,0.00052054,120]
[354632699,1740599138374,-500.0,0.00052054,120]
[354632700,1740599138397,-500.0,0.00052054,120]
[354632701,1740599138419,-500.0,0.00052054,120]
[354632702,1740599138443,-500.0,0.00052054,120]
[354632703,1740599138468,-500.0,0.00052054,120]
[354632704,1740599138491,-502.55999406,0.00052054,120]
[354632705,1740599138513,-500.0,0.00052054,120]
[354632706,1740599138536,-500.0,0.00052054,120]
[354632707,1740599138558,-500.0,0.00052054,120]
[354632708,1740599138579,-500.0,0.00052054,120]
[354632709,1740599138601,-500.0,0.00052054,120]
[354632710,1740599138624,-500.0,0.00052054,120]
[354632711,1740599138647,-500.0,0.00052054,120]
[354632712,1740599138669,-500.0,0.00052054,120]
[354632713,1740599138690,-500.0,0.00052054,120]
[354632714,1740599138715,-500.0,0.00052054,120]
[354632715,1740599138738,-500.0,0.00052054,120]
[354632716,1740599138759,-500.0,0.00052054,120]
[354632717,1740599138782,-500.0,0.00052054,120]
[354632718,1740599138805,-500.0,0.00052054,120]
[354632719,1740599138830,-500.0,0.00052054,120]
[354632720,1740599138854,-500.0,0.00052054,120]
[354632721,1740599138875,-500.0,0.00052054,120]
[354632722,1740599138895,-598.1,0.00052054,120]
[354632723,1740599138916,-500.0,0.00052054,120]
[354632724,1740599138936,-500.0,0.00052054,120]
[354632725,1740599138959,-500.0,0.00052054,120]
[354632726,1740599138979,-500.6,0.00052054,20]
[354632727,1740599139000,-500.0,0.00052054,120]
[354632728,1740599139020,-501.89238646,0.00052054,120]
[354632729,1740599139042,-500.0,0.00052054,120]
[354632730,1740599139064,-500.0,0.00052054,120]
[354632731,1740599139087,-500.0,0.00052054,120]
[354632732,1740599139110,-500.0,0.00052054,120]
[354632733,1740599139136,-500.0,0.00052054,30]
[354632734,1740599139161,-500.0,0.00052054,30]
[354632735,1740599139182,-274.63779959,0.00052054,120]
[354632736,1740599139208,-500.0,0.00052054,120]
[354632737,1740599139230,-500.0,0.00052054,120]
[354632738,1740599139252,-500.0,0.00052054,120]
[354632739,1740599139275,-500.0,0.00052054,120]
[354632740,1740599139298,-500.0,0.00052054,120]
[354632741,1740599139320,-500.0,0.00052054,120]
[354632742,1740599139342,-500.0,0.00052054,120]
[354632743,1740599139364,-500.0,0.00052054,120]
[354632744,1740599139387,-500.0,0.00052054,120]
[354632745,1740599139408,-506.61536502,0.00052054,120]
[354632746,1740599139430,-500.0,0.00052054,120]
[354632747,1740599139453,-500.0,0.00052054,120]
[354632748,1740599139474,-500.0,0.00052054,120]
[354632749,1740599139494,-500.0,0.00052054,120]
[354632750,1740599139516,-500.0,0.00052054,120]
[354632751,1740599139537,-500.0,0.00052054,120]
[354632752,1740599139559,-500.0,0.00052073,10]
[354632753,1740599139581,-500.0,0.00052073,10]
[354632754,1740599139602,-500.0,0.00052073,10]
[354632755,1740599139624,-500.0,0.00052073,10]
[354632756,1740599139647,-213.08749697,0.00052073,10]
[354632757,1740599139671,-500.0,0.00052114,2]
[354632758,1740599139694,-500.0,0.00052214,2]
[354632759,1740599139721,-736.85,0.00052314,2]
[354632760,1740599139742,-429.85903085,0.00052328,120]
[354632761,1740599139763,-500.0,0.00052328,120]
[354632762,1740599139784,-500.0,0.00052328,120]
[354632763,1740599139807,-500.0,0.00052328,120]
[354632764,1740599139828,-500.0,0.00052328,120]
[354632765,1740599139856,-500.0,0.00052328,120]
[354632766,1740599139878,-500.0,0.00052328,120]
[354632767,1740599139901,-500.0,0.00052328,120]
[354632768,1740599139924,-500.0,0.00052328,120]
[354632769,1740599139950,-500.0,0.00052328,120]
[354632770,1740599139973,-500.0,0.00052328,120]
[354632771,1740599139995,-500.0,0.00052328,120]
[354632772,1740599140019,-189.55344931,0.00052328,120]
[354632773,1740599140041,-500.0,0.00052328,120]
[354632774,1740599140063,-500.0,0.00052328,120]
[354632775,1740599140084,-517.02177576,0.00052328,30]
[354632776,1740599140105,-500.0,0.00052328,120]
[354632777,1740599140131,-500.0,0.00052328,120]
[354632778,1740599140154,-500.0,0.00052328,120]
[354632779,1740599140176,-500.0,0.00052328,120]
[354632780,1740599140201,-500.0,0.00052328,120]
[354632781,1740599140224,-500.0,0.00052328,120]
[354632782,1740599140245,-500.0,0.00052328,120]
[354632783,1740599140266,-500.0,0.00052328,120]
[354632784,1740599140287,-500.0,0.00052328,120]
[354632785,1740599140310,-500.0,0.00052602,120]
[354632786,1740599140335,-500.0,0.00052602,120]
[354632787,1740599140356,-500.0,0.00052602,120]
[354632788,1740599140559,-500.0,0.00052602,120]
[354632789,1740599140580,-500.0,0.00052602,120]
[354632790,1740599140600,-500.0,0.00052602,120]
[354632791,1740599140621,-500.0,0.00052602,120]
[354632792,1740599140642,-500.0,0.00052602,120]
[354632793,1740599140662,-500.0,0.00052602,120]
[354632794,1740599140683,-500.0,0.00052602,120]
[354632795,1740599140707,-500.0,0.00052876,120]
[354632796,1740599140727,-200.14,0.00052876,120]
[354632797,1740599140748,-269.69,0.00052876,120]
[354632798,1740599140769,-500.0,0.0005315,120]
[354632799,1740599140789,-457.13,0.00053424,120]
[354632800,1740599140810,-150.0,0.000553,2]
[354632801,1740599140830,-772.32,0.00055879,30]
[354632802,1740599140849,-1846.21,0.00055879,10]
[354632803,1740599140869,-1538.51,0.00055879,10]
[354632804,1740599140889,-1282.09,0.00055879,10]
[354632805,1740599140909,-500.0,0.00055889,120]
[354632806,1740599140929,-500.0,0.00055889,120]
[354632807,1740599140951,-500.0,0.00055889,120]
[354632808,1740599140972,-505.85,0.00055889,120]
[354632809,1740599140992,-493.33241686,0.00055889,120]
[354632810,1740599141012,-500.0,0.00055889,120]
[354632811,1740599141031,-500.0,0.00055889,120]
[354632812,1740599141051,-500.0,0.00055889,120]
[354632813,1740599141071,-500.0,0.00055889,120]
[354632814,1740599141092,-519.29,0.00055889,120]
[354632815,1740599141112,-500.0,0.00055889,120]
[354632816,1740599141135,-520.31,0.00055889,120]
[354632817,1740599141156,-500.0,0.00055889,120]
[354632818,1740599141177,-500.0,0.00055889,120]
[354632819,1740599141201,-500.0,0.00055889,120]
[354632820,1740599141222,-500.0,0.00055889,120]
[354632821,1740599141243,-179.68,0.00055889,120]
[354632822,1740599141263,-500.0,0.00055889,120]
[354632823,1740599141283,-500.0,0.00055889,120]
[354632824,1740599141303,-500.0,0.00055889,120]
[354632825,1740599141323,-500.0,0.00055889,120]
[354632826,1740599141345,-2512.73,0.00055889,7]
[354632827,1740599141366,-500.0,0.00055889,120]
[354632828,1740599141387,-500.0,0.00055889,120]
[354632829,1740599141406,-500.0,0.00055889,120]
[354632830,1740599141426,-500.0,0.00055889,120]
[354632831,1740599141446,-500.0,0.00055889,120]
[354632832,1740599141468,-500.0,0.00055889,120]
[354632833,1740599141488,-500.0,0.00055889,120]
[354632834,1740599141510,-707.34,0.00055889,120]
[354632835,1740599141531,-500.0,0.00055889,120]
[354632836,1740599141552,-500.0,0.00055889,120]
[354632837,1740599141572,-500.0,0.00055889,120]
[354632838,1740599141593,-500.0,0.00055889,120]
[354632839,1740599141614,-500.0,0.00055889,120]
[354632840,1740599141634,-500.0,0.00055889,120]
[354632841,1740599141662,-500.0,0.00055889,120]
[354632842,1740599141682,-500.0,0.00055889,120]
[354632843,1740599141704,-500.0,0.00055889,120]
[354632844,1740599141725,-500.0,0.00055889,120]
[354632845,1740599141745,-500.0,0.00055889,120]
[354632846,1740599141765,-500.0,0.00055889,120]
[354632847,1740599141785,-500.0,0.00055889,120]
[354632848,1740599141805,-500.0,0.00055889,120]
[354632849,1740599141825,-500.0,0.00055889,120]
[354632850,1740599141847,-500.0,0.00055889,120]
[354632851,1740599141867,-500.0,0.00055889,120]
[354632852,1740599141888,-500.0,0.00055889,120]
[354632853,1740599141908,-1379.11,0.00055889,3]
[354632854,1740599141929,-615.95,0.00055889,120]
[354632855,1740599141949,-500.0,0.00055889,120]
[354632856,1740599141969,-500.0,0.00055889,120]
[354632857,1740599141989,-500.0,0.00055889,120]
[354632858,1740599142009,-500.0,0.00055889,120]
[354632859,1740599142030,-500.0,0.00055889,120]
[354632860,1740599142050,-500.0,0.00055889,120]
[354632861,1740599142069,-500.0,0.00055889,120]
[354632862,1740599142089,-500.0,0.00055889,120]
[354632863,1740599142113,-500.0,0.00055889,120]
[354632864,1740599142136,-500.0,0.00055889,120]
[354632865,1740599142157,-500.0,0.00055889,120]
[354632866,1740599142178,-500.0,0.00055889,120]
[354632867,1740599142204,-500.0,0.00055889,120]
[354632868,1740599142226,-500.0,0.00055889,120]
[354632869,1740599142246,-500.0,0.00055889,120]
[354632870,1740599142266,-500.0,0.00055889,120]
[354632871,1740599142286,-500.0,0.00055889,30]
[354632872,1740599142305,-500.0,0.00055889,120]
[354632873,1740599142325,-500.0,0.00055889,120]
[354632874,1740599142344,-500.0,0.00055889,120]
[354632875,1740599142364,-500.0,0.00055889,120]
[354632876,1740599142383,-500.0,0.00055889,120]
[354632877,1740599142404,-500.0,0.00055889,120]
[354632878,1740599142425,-505.63413773,0.00055889,120]
[354632879,1740599142446,-500.0,0.00055889,120]
[354632880,1740599142466,-500.0,0.00055889,30]
[354632881,1740599142486,-500.0,0.00055889,120]
[354632882,1740599142506,-500.0,0.00055889,120]
[354632883,1740599142526,-500.0,0.00055889,120]
[354632884,1740599142547,-500.0,0.00055889,120]
[354632885,1740599142567,-500.0,0.00055889,120]
[354632886,1740599142587,-500.0,0.00055889,120]
[354632887,1740599142608,-500.0,0.00055889,120]
[354632888,1740599142628,-1000.0,0.00055889,2]
[354632889,1740599142649,-500.0,0.00055889,120]
[354632890,1740599142672,-500.0,0.00055889,120]
[354632891,1740599142692,-500.0,0.00055889,120]
[354632892,1740599142716,-612.01130235,0.00055889,120]
[354632893,1740599142737,-500.0,0.00055889,120]
[354632894,1740599142758,-500.0,0.00055889,120]
[354632895,1740599142778,-391.01044713,0.00055889,120]
[354632896,1740599142799,-153.46739607,0.00055889,120]
[354632897,1740599142820,-500.0,0.00055889,120]
[354632898,1740599142843,-500.0,0.00055889,120]
[354632899,1740599142864,-500.0,0.00055889,120]
[354632900,1740599142884,-500.0,0.00055889,120]
[354632901,1740599142904,-500.0,0.00055889,120]
[354632902,1740599142924,-500.0,0.00055889,6]
[354632903,1740599142945,-500.0,0.00055889,120]
[354632904,1740599142969,-500.0,0.00055889,120]
[354632905,1740599142989,-500.0,0.00055889,120]
[354632906,1740599143010,-500.0,0.00055889,120]
[354632907,1740599143030,-500.0,0.00055889,120]
[354632908,1740599143050,-628.41,0.00055889,120]
[354632909,1740599143070,-603.82,0.00055889,120]
[354632910,1740599143091,-500.0,0.00055889,21]
[354632911,1740599143113,-502.12165178,0.00055889,120]
[354632912,1740599143138,-500.0,0.00055889,120]
[354632913,1740599143160,-500.0,0.00055889,120]
[354632914,1740599143181,-500.0,0.00055889,120]
[354632915,1740599143205,-500.0,0.00055889,120]
[354632916,1740599143224,-500.0,0.00055889,120]
[354632917,1740599143244,-503.34517378,0.00055889,120]
[354632918,1740599143264,-500.0,0.00055889,120]
[354632919,1740599143284,-500.0,0.00055889,120]
[354632920,1740599143304,-500.0,0.00056163,120]
[354632921,1740599143324,-500.0,0.00056163,120]
[354632922,1740599143344,-500.0,0.00056163,120]
[354632923,1740599143365,-500.0,0.00056163,120]
[354632924,1740599143386,-2512.73,0.00056163,7]
[354632925,1740599143406,-500.0,0.00056163,120]
[354632926,1740599143427,-500.0,0.00056163,120]
[354632927,1740599143447,-500.0,0.00056163,120]
[354632928,1740599143469,-500.0,0.00056163,120]
[354632929,1740599143490,-500.0,0.00056163,120]
[354632930,1740599143512,-707.34,0.00056163,120]
[354632931,1740599143533,-500.0,0.00056163,120]
[354632932,1740599143554,-500.0,0.00056163,120]
[354632933,1740599143675,-500.0,0.00056163,120]
[354632934,1740599143697,-500.0,0.00056163,120]
[354632935,1740599143719,-500.0,0.00056163,120]
[354632936,1740599143740,-500.0,0.00056163,120]
[354632937,1740599143760,-500.0,0.00056163,120]
[354632938,1740599143781,-500.0,0.00056163,120]
[354632939,1740599143802,-500.0,0.00056163,120]
[354632940,1740599143823,-1379.11,0.00056163,3]
[354632941,1740599143846,-615.95,0.00056163,120]
[354632942,1740599143866,-500.0,0.00056163,120]
[354632943,1740599143887,-500.0,0.00056163,120]
[354632944,1740599143908,-500.0,0.00056163,120]
[354632945,1740599143929,-500.0,0.00056163,120]
[354632946,1740599143951,-500.0,0.00056163,120]
[354632947,1740599143972,-500.0,0.00056163,120]
[354632948,1740599143993,-500.0,0.00056163,120]
[354632949,1740599144014,-354.33,0.00056163,120]
[354632950,1740599144036,-500.0,0.00056163,120]
[354632951,1740599144056,-500.0,0.00056163,120]
[354632952,1740599144076,-500.0,0.00056163,120]
[354632953,1740599144097,-500.0,0.00056163,120]
[354632954,1740599144120,-500.0,0.00056163,120]
[354632955,1740599144144,-500.0,0.00056163,120]
[354632956,1740599144166,-500.0,0.00056163,120]
[354632957,1740599144187,-500.0,0.00056163,120]
[354632958,1740599144211,-500.0,0.00056163,120]
[354632959,1740599144231,-500.0,0.00056163,120]
[354632960,1740599144252,-500.0,0.00056163,30]
[354632961,1740599144275,-554.66,0.00056163,120]
[354632962,1740599144295,-500.0,0.00056163,120]
[354632963,1740599144315,-500.0,0.00056163,120]
[354632964,1740599144336,-500.0,0.00056163,120]
[354632965,1740599144357,-500.0,0.00056163,120]
[354632966,1740599144378,-500.0,0.00056163,120]
[354632967,1740599144399,-500.0,0.00056163,120]
[354632968,1740599144419,-500.0,0.00056163,120]
[354632969,1740599144438,-500.0,0.00056163,120]
[354632970,1740599144460,-500.0,0.00056163,120]
[354632971,1740599144480,-399.7,0.00056163,120]
[354632972,1740599144500,-203.06,0.00056163,120]
[354632973,1740599144521,-318.12,0.00056163,120]
[354632974,1740599144540,-500.0,0.00056163,120]
[354632975,1740599144560,-500.0,0.00056163,120]
[354632976,1740599144580,-500.0,0.00056163,6]
[354632977,1740599144600,-500.0,0.00056163,120]
[354632978,1740599144620,-294.28,0.00056163,120]
[354632979,1740599144640,-500.0,0.00056163,21]
[354632980,1740599144660,-500.0,0.00056163,120]
[354632981,1740599144681,-500.0,0.00056163,120]
[354632982,1740599144704,-500.0,0.00056163,120]
[354632983,1740599144724,-500.0,0.00056163,120]
[354632984,1740599144745,-500.0,0.00056437,120]
[354632985,1740599144766,-2512.73,0.00056437,7]
[354632986,1740599144786,-500.0,0.00056437,120]
[354632987,1740599144807,-707.34,0.00056437,120]
[354632988,1740599144828,-500.0,0.00056437,120]
[354632989,1740599144848,-500.0,0.00056437,120]
[354632990,1740599144871,-500.0,0.00056437,120]
[354632991,1740599144891,-500.0,0.00056437,120]
[354632992,1740599144912,-500.0,0.00056437,120]
[354632993,1740599144932,-500.0,0.00056437,120]
[354632994,1740599144953,-500.0,0.00056437,120]
[354632995,1740599144973,-1379.11,0.00056437,3]
[354632996,1740599144996,-615.95,0.00056437,120]
[354632997,1740599145017,-500.0,0.00056437,120]
[354632998,1740599145038,-500.0,0.00056437,120]
[354632999,1740599145058,-500.0,0.00056437,120]
[354633000,1740599145078,-500.0,0.00056437,120]
[354633001,1740599145099,-500.0,0.00056437,120]
[354633002,1740599145124,-500.0,0.00056437,120]
[354633003,1740599145146,-500.0,0.00056437,120]
[354633004,1740599145168,-500.0,0.00056437,120]
[354633005,1740599145189,-500.0,0.00056437,120]
[354633006,1740599145212,-210.04,0.00056437,120]
[354633007,1740599145232,-438.45,0.00056437,120]
[354633008,1740599145253,-500.0,0.00056437,120]
[354633009,1740599145274,-500.0,0.00056437,120]
[354633010,1740599145296,-500.0,0.00056437,6]
[354633011,1740599145316,-500.0,0.00056437,120]
[354633012,1740599145337,-500.8,0.00056437,120]
[354633013,1740599145358,-500.0,0.00056437,120]
[354633014,1740599145378,-500.0,0.00056437,120]
[354633015,1740599145398,-245.78,0.000565,30]
[354633016,1740599145418,-500.0,0.00056711,120]
[354633017,1740599145440,-2512.73,0.00056711,7]
[354633018,1740599145464,-707.34,0.00056711,120]
[354633019,1740599145486,-456.2,0.00056711,120]
[354633020,1740599145508,-500.0,0.00056711,120]
[354633021,1740599145529,-1379.11,0.00056711,3]
[354633022,1740599145552,-615.95,0.00056711,120]
[354633023,1740599145574,-500.0,0.00056711,120]
[354633024,1740599145597,-500.0,0.00056711,120]
[354633025,1740599145620,-500.0,0.00056711,120]
[354633026,1740599145641,-301.4,0.00056711,120]
[354633027,1740599145664,-500.0,0.00056711,120]
[354633028,1740599145685,-500.0,0.00056711,6]
[354633029,1740599145707,-285.95,0.00056711,120]
[354633030,1740599145728,-500.0,0.00056985,120]
[354633031,1740599145748,-2512.73,0.00056985,7]
[354633032,1740599145770,-707.34,0.00056985,120]
[354633033,1740599145791,-500.0,0.00056985,120]
[354633034,1740599145813,-1379.11,0.00056985,3]
[354633035,1740599145834,-615.95,0.00056985,120]
[354633036,1740599145857,-500.0,0.00056985,120]
[354633037,1740599145878,-432.2,0.00056985,120]
[354633038,1740599145900,-500.0,0.00056985,120]
[354633039,1740599145921,-500.0,0.00056985,120]
[354633040,1740599145945,-500.0,0.00056985,6]
[354633041,1740599145967,-500.0,0.00057259,120]
[354633042,1740599145988,-2512.73,0.00057259,7]
[354633043,1740599146026,-707.34,0.00057259,120]
[354633044,1740599146048,-495.79,0.00057259,120]
[354633045,1740599146068,-1379.11,0.00057259,3]
[354633046,1740599146090,-615.95,0.00057259,120]
[354633047,1740599146111,-500.0,0.00057259,120]
[354633048,1740599146137,-500.0,0.00057259,120]
[354633049,1740599146160,-500.0,0.00057259,120]
[354633050,1740599146183,-500.0,0.00057259,6]
[354633051,1740599146208,-275.20538904,0.00057433,2]
[354633052,1740599146231,-500.0,0.00057533,120]
[354633053,1740599146253,-2512.73,0.00057533,7]
[354633054,1740599146274,-707.34,0.00057533,120]
[354633055,1740599146297,-208.20125222,0.00057533,3]
[354633056,1740599245092,-24900.0,0.00047531,2]
[354633057,1740599245114,-538.6,0.00052054,120]
[354633058,1740599245136,-507.76135394,0.00052054,120]
[354633059,1740599245164,-500.0,0.00052054,120]
[354633060,1740599245186,-500.0,0.00052054,120]
[354633061,1740599245210,-500.0,0.00052054,120]
[354633062,1740599245235,-500.0,0.00052054,120]
[354633063,1740599245256,-500.0,0.00052054,120]
[354633064,1740599245277,-500.0,0.00052054,120]
[354633065,1740599245298,-500.0,0.00052328,120]
[354633066,1740599245318,-500.0,0.00052328,120]
[354633067,1740599245339,-2427.12408204,0.00052502,28]
[354633068,1740599245360,-500.0,0.00055889,120]
[354633069,1740599245380,-500.0,0.00055889,120]